bitfinex/quotes_BTCUSD_20251117
["timestamp","ask_amount","ask_price","bid_price","bid_amount"]
[1763367527424,0.11503087,95980.0,95979.0,0.005]
[1763367530730,0.12616087,95980.0,95979.0,0.005]
[1763367531170,0.11503087,95980.0,95979.0,0.005]
[1763367534379,0.12616087,95980.0,95979.0,0.005]
[1763367535486,0.11503087,95980.0,95979.0,0.005]
[1763367537589,0.10390087,95980.0,95973.0,0.02416]
[1763367537790,0.01955118,95979.0,95978.0,0.01241]
[1763367538140,0.01955118,95979.0,95972.0,0.01241]
[1763367538719,0.05215097,95978.0,95972.0,0.01241]
[1763367539653,0.08352,95980.0,95972.0,0.01241]
[1763367539861,0.07170422,95979.0,95969.0,0.000288]
[1763367540223,0.01955325,95978.0,95969.0,0.000288]
[1763367540496,0.01955325,95977.0,95969.0,0.000288]
[1763367540771,0.05215097,95979.0,95969.0,0.000288]
[1763367540965,0.01955462,95978.0,95969.0,0.000288]
[1763367541085,0.01955462,95977.0,95969.0,0.000288]
[1763367541288,0.05215097,95979.0,95969.0,0.000288]
[1763367541639,0.01113,95970.0,95969.0,0.000288]
[1763367542285,0.01113,95976.0,95969.0,0.000288]
[1763367542497,0.01955929,95975.0,95969.0,0.000288]
[1763367542620,0.01955929,95974.0,95969.0,0.000288]
[1763367542828,0.01955929,95973.0,95969.0,0.000288]
[1763367543028,0.01955929,95972.0,95969.0,0.000288]
[1763367543337,0.01113,95978.0,95969.0,0.000288]
[1763367543572,0.01956241,95977.0,95969.0,0.000288]
[1763367543805,0.01956241,95976.0,95969.0,0.000288]
[1763367543991,0.01956241,95975.0,95969.0,0.000288]
[1763367544217,0.01956241,95974.0,95969.0,0.000288]
[1763367544465,0.01956241,95973.0,95969.0,0.000288]
[1763367544673,0.01956241,95972.0,95969.0,0.000288]
[1763367544829,0.01956241,95971.0,95969.0,0.000288]
[1763367545174,0.01113,95978.0,95969.0,0.000288]
[1763367545324,0.01956576,95977.0,95969.0,0.000288]
[1763367545494,0.01956576,95976.0,95969.0,0.000288]
[1763367545689,0.01956576,95975.0,95969.0,0.000288]
[1763367545903,0.01956576,95974.0,95969.0,0.000288]
[1763367546110,0.01956576,95973.0,95969.0,0.000288]
[1763367546306,0.01956576,95972.0,95969.0,0.000288]
[1763367546514,0.01956855,95971.0,95969.0,0.000288]
[1763367546777,0.01956855,95970.0,95969.0,0.000288]
[1763367548317,0.02012644,95970.0,95969.0,0.000288]
[1763367549583,0.10364644,95970.0,95969.0,0.000288]
[1763367551163,0.10364644,95970.0,95969.0,0.015668]
[1763367551499,0.10364644,95970.0,95969.0,0.039828]
[1763367552596,0.08407789,95970.0,95969.0,0.039828]
[1763367554747,0.00055789,95970.0,95969.0,0.039828]
[1763367554927,0.08407789,95970.0,95969.0,0.039828]
[1763367555900,0.08407789,95970.0,95969.0,0.015668]
[1763367556096,0.08407789,95970.0,95969.0,0.000288]
[1763367557454,0.08407789,95970.0,95969.0,0.016258]
[1763367557666,0.00055789,95970.0,95969.0,0.039748]
[1763367557890,0.08407789,95970.0,95969.0,0.039748]
[1763367561367,0.08407789,95970.0,95969.0,0.016258]
[1763367561715,0.08407789,95970.0,95969.0,0.000288]
[1763367563595,0.11540488,95970.0,95969.0,0.000288]
[1763367567833,0.15723753,95970.0,95969.0,0.000288]
[1763367568412,0.07371753,95970.0,95969.0,0.000288]
[1763367568826,0.15723753,95970.0,95969.0,0.000288]
[1763367569596,0.07371753,95970.0,95969.0,0.000288]
[1763367569799,0.15723753,95970.0,95969.0,0.000288]
[1763367572784,0.07371753,95970.0,95969.0,0.000288]
[1763367573117,0.15723753,95970.0,95969.0,0.000288]
[1763367574310,0.13497753,95970.0,95969.0,0.039748]
[1763367574509,0.11540488,95970.0,95969.0,0.039748]
[1763367575526,0.08407789,95970.0,95969.0,0.039748]
[1763367576330,0.08407789,95970.0,95969.0,0.000288]
[1763367577112,0.08407789,95970.0,95969.0,0.039748]
[1763367577833,0.08407789,95970.0,95969.0,0.016258]
[1763367579386,0.08407789,95970.0,95969.0,0.000288]
[1763367581466,0.08407789,95970.0,95969.0,0.039748]
[1763367585484,0.00055789,95970.0,95969.0,0.039748]
[1763367585707,0.08407789,95970.0,95969.0,0.039748]
[1763367589625,0.08407789,95970.0,95969.0,0.016258]
[1763367590340,0.08407789,95970.0,95969.0,0.040038]
[1763367593714,0.08407789,95970.0,95969.0,0.141038]
[1763367594108,0.08407789,95970.0,95969.0,0.142038]
[1763367594930,0.08407789,95970.0,95969.0,0.138018]
[1763367596448,0.09922789,95970.0,95969.0,0.102]
[1763367596658,0.12199789,95970.0,95969.0,0.102]
[1763367596853,0.15332783,95970.0,95969.0,0.002]
[1763367597215,0.13055783,95970.0,95969.0,0.002]
[1763367597439,0.13055783,95970.0,95969.0,0.001]
[1763367597702,0.13055783,95970.0,95957.0,0.01211]
[1763367598009,0.00023167,95958.0,95957.0,0.01211]
[1763367598412,0.00023167,95958.0,95957.0,0.05187]
[1763367598786,0.02401167,95958.0,95957.0,0.05187]
[1763367599185,0.02401167,95958.0,95957.0,0.15187]
[1763367599393,0.02401167,95958.0,95957.0,0.15287]
[1763367599729,0.01401167,95958.0,95957.0,0.15287]
[1763367600088,0.01401167,95958.0,95957.0,0.15387]
[1763367600284,0.09753167,95958.0,95957.0,0.15387]
[1763367600594,0.09753167,95958.0,95957.0,0.11411]
[1763367600990,0.09753167,95958.0,95957.0,0.15387]
[1763367601982,0.08352,95958.0,95957.0,0.15387]
[1763367602196,0.08352,95958.0,95957.0,0.19728874]
[1763367602869,4.416e-05,95970.0,95958.0,0.04341874]
[1763367603072,4.416e-05,95970.0,95969.0,0.01598]
[1763367603227,0.08356416,95970.0,95969.0,0.01598]
[1763367603430,0.08356416,95970.0,95969.0,0.03976]
[1763367603677,0.08389037,95970.0,95969.0,0.03976]
[1763367604191,0.08389037,95970.0,95969.0,0.14076]
[1763367605123,0.00018337,95970.0,95969.0,0.14076]
[1763367605297,0.08370337,95970.0,95969.0,0.14076]
[1763367605499,0.08370337,95970.0,95969.0,0.14176]
[1763367608617,0.00018337,95970.0,95969.0,0.14176]
[1763367608802,0.08370337,95970.0,95969.0,0.14176]
[1763367612063,0.00018337,95970.0,95969.0,0.18517874]
[1763367612205,0.08370337,95970.0,95969.0,0.18517874]
[1763367612624,0.08370337,95970.0,95969.0,0.21649791]
[1763367612830,0.08370337,95970.0,95969.0,0.53849791]
[1763367613039,0.08370337,95970.0,95969.0,0.56022107]
[1763367613249,0.08370337,95970.0,95969.0,0.56122107]
[1763367613474,0.08370337,95970.0,95969.0,0.56222107]
[1763367613751,0.08370337,95970.0,95969.0,0.56122107]
[1763367614000,0.08370337,95970.0,95969.0,0.56322107]
[1763367614739,0.08370337,95970.0,95969.0,0.56222107]
[1763367614944,0.08370337,95970.0,95969.0,0.56422107]
[1763367616630,0.08370337,95970.0,95969.0,0.87682107]
[1763367619669,0.08370337,95970.0,95969.0,0.8455019]
[1763367620234,0.08370337,95970.0,95969.0,1.05390252]
[1763367620441,0.0002,95990.0,95987.0,0.20836142]
[1763367620671,0.08376417,95990.0,95989.0,0.02689]
[1763367620873,0.08376417,95990.0,95989.0,0.33943]
[1763367621085,0.08376417,95990.0,95989.0,0.36197]
[1763367621282,0.08376417,95990.0,95989.0,0.38469316]
[1763367621486,0.08376417,95990.0,95989.0,0.36197]
[1763367621698,0.08376417,95990.0,95989.0,0.43943]
[1763367621903,0.08376417,95990.0,95989.0,0.41254]
[1763367621904,0.12302417,95990.0,95989.0,0.41254]
[1763367622103,0.12302417,95990.0,95989.0,0.31254]
[1763367622301,0.12302417,95990.0,95989.0,0.31354]
[1763367623204,0.12302417,95990.0,95989.0,0.31454]
[1763367623416,0.10022417,95990.0,95989.0,0.31354]
[1763367623627,0.08376417,95990.0,95989.0,0.32945]
[1763367623827,0.08376417,95990.0,95989.0,0.33045]
[1763367624029,0.08376417,95990.0,95989.0,0.31354]
[1763367624233,0.08376417,95990.0,95989.0,0.32945]
[1763367624434,0.08376417,95990.0,95989.0,0.33045]
[1763367624841,0.08376417,95990.0,95989.0,0.32945]
[1763367625256,0.08376417,95990.0,95989.0,0.35199]
[1763367625478,0.002,95999.0,95990.0,0.00975583]
[1763367625663,0.08348,95998.0,95990.0,0.00975583]
[1763367626087,0.0005707,95991.0,95990.0,0.00975583]
[1763367626468,0.0005707,95991.0,95990.0,0.04820583]
[1763367627514,0.0005707,95991.0,95990.0,0.04920583]
[1763367629408,0.0005707,95991.0,95990.0,0.01075583]
[1763367629409,0.0398307,95991.0,95990.0,0.01075583]
[1763367629807,0.05934749,95991.0,95990.0,0.01075583]
[1763367631773,0.05934749,95991.0,95990.0,0.00975583]
[1763367632051,0.05935068,95991.0,95990.0,0.00975583]
[1763367632244,0.46587068,95991.0,95990.0,0.00975583]
[1763367634796,0.51245775,95991.0,95990.0,0.00975583]
[1763367635003,0.46587068,95991.0,95990.0,0.00975583]
[1763367635202,0.48836214,95991.0,95990.0,0.00975583]
[1763367637501,0.46587068,95991.0,95990.0,0.00975583]
[1763367643175,0.4463507,95991.0,95990.0,0.00975583]
[1763367646128,0.4658638,95991.0,95990.0,0.00975583]
[1763367650526,0.46587189,95991.0,95990.0,0.00975583]
[1763367650987,0.4463507,95991.0,95990.0,0.00975583]
[1763367651189,0.10361963,95991.0,95990.0,0.00975583]
[1763367651408,0.0840907,95991.0,95990.0,0.00975583]
[1763367651627,0.08352,95991.0,95990.0,0.00975583]
[1763367652316,0.10006,95991.0,95990.0,0.00975583]
[1763367653596,0.08352,95991.0,95990.0,0.00975583]
[1763367656801,0.10006,95991.0,95990.0,0.00975583]
[1763367657213,0.12402,95991.0,95990.0,0.00975583]
[1763367659010,0.10006,95991.0,95990.0,0.00975583]
[1763367661418,0.08352,95991.0,95990.0,0.00975583]
[1763367662921,0.08352,95991.0,95990.0,0.05033583]
[1763367663521,0.002,95999.0,95990.0,0.05033583]
[1763367663722,0.002,95999.0,95998.0,0.02834]
[1763367663962,0.08552,95999.0,95998.0,0.02834]
[1763367664201,0.08552,95999.0,95998.0,0.05301]
[1763367664939,0.08552,95999.0,95998.0,0.05401]
[1763367665134,0.08552,95999.0,95998.0,0.05301]
[1763367665559,0.08552,95999.0,95998.0,0.05401]
[1763367666284,0.08552,95999.0,95998.0,0.15401]
[1763367667146,0.08552,95999.0,95998.0,0.15301]
[1763367667517,0.08552,95999.0,95998.0,0.15401]
[1763367667713,0.08552,95999.0,95998.0,0.15501]
[1763367669683,0.08552,95999.0,95998.0,0.16001]
[1763367674820,0.08552,95999.0,95998.0,0.20342874]
[1763367675058,0.08552,95999.0,95998.0,0.41176641]
[1763367675467,0.08552,95999.0,95998.0,0.73476641]
[1763367675668,0.5004445,96000.0,95998.0,0.63476641]
[1763367675822,0.5004445,96000.0,95999.0,0.40715874]
[1763367676025,0.5839245,96000.0,95999.0,0.40715874]
[1763367676423,0.5839245,96000.0,95999.0,0.4298819]
[1763367677105,0.5839245,96000.0,95999.0,0.5298819]
[1763367677529,0.5839245,96000.0,95999.0,0.5308819]
[1763367678082,0.5839245,96000.0,95999.0,0.5318819]
[1763367681431,0.15645205,96000.0,95999.0,0.73123287]
[1763367681631,0.15429364,96000.0,95999.0,0.56130971]
[1763367681924,0.15429364,96000.0,95999.0,0.90511228]
[1763367682126,0.15429364,96000.0,95999.0,0.92783544]
[1763367682328,0.15429364,96000.0,95999.0,0.92683544]
[1763367682552,0.15429364,96000.0,95999.0,0.92583544]
[1763367682770,0.15429364,96000.0,95999.0,0.92983544]
[1763367683306,0.0002,96020.0,96009.0,0.57473254]
[1763367683505,0.0002,96080.0,96041.0,0.323]
[1763367683506,0.08348,96076.0,96041.0,0.323]
[1763367683749,0.08348,96076.0,96075.0,0.01162]
[1763367683750,0.08392231,96076.0,96075.0,0.01162]
[1763367684118,0.08392231,96076.0,96066.0,0.00828]
[1763367684287,0.00044231,96076.0,96075.0,0.0154]
[1763367684494,0.08392231,96076.0,96075.0,0.32766]
[1763367684716,9e-05,96092.0,96075.0,0.32766]
[1763367684717,0.40029,96100.0,96099.0,0.01411]
[1763367684917,0.40041898,96100.0,96099.0,0.01411]
[1763367685310,0.40041898,96100.0,96099.0,0.72756175]
[1763367685519,0.48389898,96100.0,96099.0,0.69270874]
[1763367685719,0.40041898,96100.0,96099.0,0.72402027]
[1763367685941,0.40041898,96100.0,96099.0,0.79270874]
[1763367686151,0.48389898,96100.0,96099.0,0.74929]
[1763367686381,0.48389898,96100.0,96099.0,0.8164319]
[1763367686738,0.48389898,96100.0,96099.0,0.8174319]
[1763367687511,0.48389898,96100.0,96099.0,0.8164319]
[1763367687712,0.48389898,96100.0,96099.0,0.8234319]
[1763367688142,0.48389898,96100.0,96099.0,0.8224319]
[1763367688355,0.48389898,96100.0,96099.0,0.8234319]
[1763367688561,0.48389898,96100.0,96099.0,0.8214319]
[1763367688814,0.48389898,96100.0,96099.0,0.8204319]
[1763367688982,0.48389898,96100.0,96099.0,0.8224319]
[1763367689184,0.48389898,96100.0,96099.0,0.78101316]
[1763367689365,0.48389898,96100.0,96099.0,0.74418]
[1763367689568,0.48661324,96100.0,96099.0,0.74418]
[1763367690391,0.48661324,96100.0,96099.0,0.74218]
[1763367691034,0.48661324,96100.0,96099.0,0.74018]
[1763367691431,0.48661324,96100.0,96099.0,0.74218]
[1763367692371,0.52568324,96100.0,96099.0,0.41918]
[1763367692570,0.48661324,96100.0,96099.0,0.41918]
[1763367694066,0.52568324,96100.0,96099.0,0.41918]
[1763367694529,0.54495351,96100.0,96099.0,0.31918]
[1763367695102,0.54495351,96100.0,96099.0,0.31718]
[1763367695311,0.54495351,96100.0,96099.0,0.31818]
[1763367695874,0.46147351,96100.0,96099.0,0.31718]
[1763367696416,0.78447351,96100.0,96099.0,0.2872778]
[1763367696783,0.78447351,96100.0,96099.0,0.005]
[1763367697133,0.78447351,96100.0,96056.0,0.02272316]
[1763367697134,0.323,96099.0,96056.0,0.02272316]
[1763367697333,0.323,96099.0,96041.0,0.323]
[1763367697334,0.05215097,96079.0,96046.0,0.04341874]
[1763367697539,0.01927027,96078.0,96046.0,0.04341874]
[1763367697760,0.01927027,96077.0,96046.0,0.04341874]
[1763367698079,0.01927027,96076.0,96046.0,0.04341874]
[1763367698274,0.01927027,96075.0,96055.0,0.1]
[1763367698480,0.03444,96078.0,96055.0,0.1]
[1763367698481,0.01927027,96074.0,96055.0,0.1]
[1763367698693,0.0119,96085.0,96061.0,0.323]
[1763367698896,0.01928902,96084.0,96063.0,0.20819596]
[1763367699041,0.00953319,96083.0,96063.0,0.20819596]
[1763367699243,0.0119,96085.0,96061.0,0.323]
[1763367699448,0.0119,96085.0,96065.0,0.02272316]
[1763367700248,0.0119,96085.0,96075.0,0.1]
[1763367702220,0.0119,96090.0,96075.0,0.1]
[1763367703490,0.03444,96096.0,96075.0,0.1]
[1763367703491,0.0119,96096.0,96075.0,0.1]
[1763367703690,0.00206335,96076.0,96075.0,0.1]
[1763367704710,0.00206335,96076.0,96075.0,0.101]
[1763367705288,0.00206335,96076.0,96075.0,0.46741874]
[1763367705497,0.40041898,96100.0,96075.0,0.46741874]
[1763367705498,0.40018583,96100.0,96087.0,0.20814317]
[1763367705694,0.0834,96099.0,96090.0,0.55534645]
[1763367705986,0.40018583,96100.0,96097.0,0.25154162]
[1763367706112,0.0834,96098.0,96097.0,0.57454162]
[1763367706305,0.40018583,96100.0,96099.0,0.57453745]
[1763367706505,0.48358583,96100.0,96099.0,0.57453745]
[1763367706949,0.48358583,96100.0,96099.0,0.59726061]
[1763367707542,0.48358583,96100.0,96099.0,0.4891419]
[1763367708228,0.48358583,96100.0,96099.0,0.4901419]
[1763367708462,0.48358583,96100.0,96099.0,0.4921419]
[1763367709252,0.40018583,96100.0,96099.0,0.4921419]
[1763367709449,0.48358583,96100.0,96099.0,0.4921419]
[1763367709762,0.36890533,96100.0,96099.0,0.4921419]
[1763367709984,0.33762483,96100.0,96099.0,0.4921419]
[1763367710130,0.30634433,96100.0,96099.0,0.4921419]
[1763367710331,0.27506383,96100.0,96099.0,0.4921419]
[1763367710696,0.21250283,96100.0,96099.0,0.4921419]
[1763367710840,0.1812235,96100.0,96099.0,0.4921419]
[1763367711042,0.14994417,96100.0,96099.0,0.57026446]
[1763367711269,0.1193158,96100.0,96099.0,0.57026446]
[1763367712324,0.1193158,96100.0,96099.0,0.88244446]
[1763367712704,0.1193158,96100.0,96099.0,0.8597213]
[1763367713295,0.1193158,96100.0,96099.0,0.8567213]
[1763367713470,0.1193158,96100.0,96099.0,0.8587213]
[1763367713874,0.1193158,96100.0,96099.0,0.73718]
[1763367714676,0.13875684,96100.0,96099.0,0.73718]
[1763367714913,0.1193158,96100.0,96099.0,0.73718]
[1763367715090,0.13875771,96100.0,96099.0,0.73618]
[1763367715527,0.1193158,96100.0,96099.0,0.73618]
[1763367715755,0.2027158,96100.0,96099.0,0.73518]
[1763367716147,0.2027158,96100.0,96099.0,0.73618]
[1763367716349,0.2027158,96100.0,96099.0,0.73718]
[1763367716949,0.1193158,96100.0,96099.0,0.73718]
[1763367717128,0.2027158,96100.0,96099.0,0.73718]
[1763367718952,0.2002158,96100.0,96099.0,0.73718]
[1763367719157,0.1168158,96100.0,96099.0,0.73718]
[1763367719375,0.1958475,96100.0,96099.0,0.98871745]
[1763367720348,0.1958475,96100.0,96099.0,1.00944061]
[1763367720464,0.1958475,96100.0,96099.0,1.01044061]
[1763367720668,0.1958475,96100.0,96099.0,1.01244061]
[1763367720880,0.1958475,96100.0,96099.0,1.01644061]
[1763367721086,0.1124475,96100.0,96099.0,1.01644061]
[1763367721286,0.1958475,96100.0,96099.0,1.01744061]
[1763367721920,0.1958475,96100.0,96099.0,1.01544061]
[1763367722132,0.1958475,96100.0,96099.0,1.01744061]
[1763367722599,0.07063039,96100.0,96099.0,1.01444061]
[1763367722821,0.03225824,96100.0,96099.0,1.01744061]
[1763367723025,0.00097781,96100.0,96099.0,1.01744061]
[1763367723242,0.0834,96111.0,96110.0,0.57451363]
[1763367723467,0.0834,96111.0,96110.0,0.88665363]
[1763367723923,0.0834,96111.0,96110.0,0.90937679]
[1763367724301,0.0834,96111.0,96110.0,1.00937679]
[1763367724511,0.0834,96111.0,96110.0,1.03537321]
[1763367724720,0.0024,96157.0,96135.0,0.36641874]
[1763367724921,0.10280888,96156.0,96137.0,0.04341874]
[1763367725132,0.01940888,96155.0,96137.0,0.43245966]
[1763367725333,0.01940888,96154.0,96137.0,0.43245966]
[1763367725534,0.01940888,96153.0,96137.0,0.31205]
[1763367725734,0.02373,96155.0,96137.0,0.31205]
[1763367725933,0.34720951,96150.0,96137.0,0.31205]
[1763367726153,0.01517,96138.0,96137.0,0.31205]
[1763367726555,0.0389,96138.0,96137.0,0.31205]
[1763367726952,0.05829833,96138.0,96137.0,0.31205]
[1763367727505,0.08957802,96138.0,96137.0,0.31205]
[1763367728475,0.41257802,96138.0,96137.0,0.31205]
[1763367728679,0.43495374,96138.0,96137.0,0.31205]
[1763367729055,0.43495374,96138.0,96097.0,0.1]
[1763367729056,0.36641874,96137.0,96097.0,0.1]
[1763367729414,0.02722,96100.0,96097.0,0.1]
[1763367729620,0.04661833,96100.0,96096.0,0.1]
[1763367729842,0.07034833,96100.0,96089.0,0.1]
[1763367730090,0.07034833,96100.0,96085.0,0.1]
[1763367730663,0.07034833,96100.0,96081.0,0.1]
[1763367730958,0.07034833,96100.0,96050.0,0.34720951]
[1763367730959,0.07034833,96100.0,96075.0,0.1]
[1763367731155,0.07034833,96100.0,96072.0,0.1]
[1763367732037,0.10164094,96100.0,96072.0,0.1]
[1763367734437,0.18504094,96100.0,96072.0,0.1]
[1763367735078,0.05215097,96088.0,96074.0,0.1]
[1763367735287,0.01939833,96087.0,96074.0,0.1]
[1763367735513,0.03144833,96087.0,96074.0,0.1]
[1763367735727,0.12752833,96086.0,96074.0,0.1]
[1763367735929,0.01628,96075.0,96074.0,0.1]
[1763367736161,0.01628,96075.0,96072.0,0.00012898]
[1763367736162,0.01628,96075.0,96072.0,0.10012898]
[1763367736348,0.0834,96086.0,96074.0,0.001]
[1763367736560,0.02783,96073.0,96072.0,0.00012898]
[1763367736716,0.0834,96073.0,96072.0,0.00012898]
[1763367737296,0.03678,96100.0,96075.0,0.04341874]
[1763367737297,0.0834,96084.0,96075.0,0.04341874]
[1763367737496,0.0834,96084.0,96077.0,0.36641874]
[1763367737904,0.0834,96084.0,96079.0,0.04341874]
[1763367738110,0.0834,96084.0,96077.0,0.323]
[1763367738465,0.0834,96084.0,96081.0,0.1]
[1763367738693,0.01658,96082.0,96081.0,0.1]
[1763367738840,0.01658,96082.0,96075.0,0.1]
[1763367739042,0.01658,96082.0,96079.0,0.001]
[1763367739043,0.01217,96081.0,96079.0,0.001]
[1763367739431,0.03917,96080.0,96075.0,0.1]
[1763367739634,0.01217,96081.0,96075.0,0.1]
[1763367739831,0.05215097,96099.0,96075.0,0.1]
[1763367740051,0.01217,96089.0,96075.0,0.1]
[1763367740251,0.0834,96088.0,96075.0,0.1]
[1763367740457,0.10599,96088.0,96075.0,0.1]
[1763367740661,0.02259,96087.0,96075.0,0.1]
[1763367740861,0.0834,96088.0,96075.0,0.1]
[1763367741064,0.02259,96087.0,96079.0,0.1]
[1763367741267,0.01658,96080.0,96079.0,0.1]
[1763367742310,0.01658,96080.0,96079.0,0.101]
[1763367742430,0.09998,96080.0,96079.0,0.1]
[1763367742631,0.12257,96080.0,96079.0,0.1]
[1763367742911,0.12257,96080.0,96079.0,0.002]
[1763367743342,0.12257,96080.0,96079.0,0.001]
[1763367743626,0.12257,96080.0,96079.0,0.002]
[1763367744189,0.12257,96080.0,96079.0,0.001]
[1763367744612,0.12257,96080.0,96079.0,0.002]
[1763367744816,0.12257,96080.0,96079.0,0.001]
[1763367745025,0.12257,96080.0,96077.0,0.005]
[1763367745231,0.06873097,96078.0,96077.0,0.005]
[1763367745582,0.03917,96078.0,96077.0,0.005]
[1763367745833,0.12257,96078.0,96077.0,0.005]
[1763367747382,0.12257,96078.0,96077.0,0.006]
[1763367747550,0.09998,96078.0,96077.0,0.006]
[1763367747803,0.0834,96078.0,96077.0,0.005]
[1763367748005,0.01217,96089.0,96077.0,0.006]
[1763367748442,0.0834,96088.0,96077.0,0.006]
[1763367748675,0.0834,96088.0,96077.0,0.005]
[1763367748886,0.01658,96078.0,96077.0,0.005]
[1763367749098,0.01658,96078.0,96077.0,0.105]
[1763367749305,0.01205,96100.0,96077.0,0.105]
[1763367749513,0.0834,96099.0,96080.0,0.48543733]
[1763367749727,0.0834,96098.0,96080.0,0.48543733]
[1763367749927,0.0834,96098.0,96080.0,0.50816049]
[1763367750141,0.01205,96100.0,96080.0,0.50816049]
[1763367750361,0.0834,96099.0,96082.0,0.53115553]
[1763367750588,0.0834,96099.0,96086.0,0.323]
[1763367751034,0.0834,96098.0,96092.0,0.20813253]
[1763367751251,0.0834,96098.0,96090.0,0.20813686]
[1763367751470,0.0834,96098.0,96089.0,0.48543733]
[1763367751690,0.0834,96098.0,96095.0,0.02272316]
[1763367752535,0.01658,96096.0,96095.0,0.02272316]
[1763367752772,0.01658,96096.0,96095.0,0.12272316]
[1763367753004,0.0834,96098.0,96095.0,0.12272316]
[1763367753210,0.0834,96098.0,96095.0,0.12372316]
[1763367753627,0.0834,96098.0,96095.0,0.12472316]
[1763367753826,0.00024407,96109.0,96100.0,0.20811459]
[1763367754057,0.0834,96108.0,96107.0,0.20810138]
[1763367754270,0.0834,96108.0,96100.0,0.36641874]
[1763367754483,0.0834,96108.0,96107.0,0.323]
[1763367755339,0.0834,96108.0,96107.0,0.50022622]
[1763367755785,0.0834,96108.0,96107.0,0.50122622]
[1763367756198,0.0834,96108.0,96107.0,0.102]
[1763367758383,0.0834,96108.0,96107.0,0.002]
[1763367758590,0.09998,96108.0,96107.0,0.002]
[1763367759013,0.0834,96108.0,96107.0,0.002]
[1763367759244,0.0834,96108.0,96107.0,0.001]
[1763367759660,0.0834,96108.0,96105.0,0.1]
[1763367759862,0.0834,96108.0,96107.0,0.001]
[1763367760267,0.0834,96108.0,96107.0,0.005]
[1763367760445,0.0834,96108.0,96107.0,0.106]
[1763367760978,0.0834,96108.0,96107.0,0.107]
[1763367763191,0.00024407,96109.0,96107.0,0.107]
[1763367763393,0.00024407,96109.0,96107.0,0.007]
[1763367763598,0.00024407,96109.0,96107.0,0.21510138]
[1763367763762,0.0834,96108.0,96107.0,0.58152012]
[1763367763955,0.0834,96108.0,96107.0,0.58052012]
[1763367764411,0.0834,96108.0,96107.0,0.70324328]
[1763367764578,0.0834,96108.0,96107.0,0.4961419]
[1763367764791,0.0834,96108.0,96107.0,0.4951419]
[1763367764992,0.00024407,96109.0,96108.0,0.36641874]
[1763367765193,0.08364407,96109.0,96108.0,0.36641874]
[1763367765394,0.01217,96143.0,96111.0,0.04341874]
[1763367765698,0.01217,96143.0,96115.0,0.36641874]
[1763367765699,0.0834,96142.0,96115.0,0.36641874]
[1763367765897,0.0834,96142.0,96119.0,0.20807447]
[1763367766122,0.0834,96141.0,96120.0,0.323]
[1763367766522,0.0834,96141.0,96120.0,0.34572316]
[1763367766821,0.10747,96141.0,96120.0,0.34572316]
[1763367767018,0.10747,96141.0,96130.0,0.1]
[1763367767391,0.0834,96141.0,96130.0,0.1]
[1763367768136,0.10747,96141.0,96130.0,0.1]
[1763367769610,0.02798,96131.0,96130.0,0.1]
[1763367770735,0.02798,96131.0,96130.0,0.101]
[1763367770886,0.01185,96131.0,96130.0,0.101]
[1763367771104,0.02407,96140.0,96130.0,0.102]
[1763367771105,0.01185,96134.0,96130.0,0.102]
[1763367771528,0.01672659,96131.0,96130.0,0.102]
[1763367771909,0.01672659,96131.0,96130.0,0.101]
[1763367772445,0.00059659,96131.0,96130.0,0.1]
[1763367772666,0.00059659,96131.0,96130.0,0.101]
[1763367772798,0.00059659,96131.0,96130.0,0.1]
[1763367773200,0.01672659,96131.0,96130.0,0.101]
[1763367773606,0.01672659,96131.0,96130.0,0.102]
[1763367775244,0.04079659,96131.0,96130.0,0.102]
[1763367775759,0.04079659,96131.0,96130.0,0.002]
[1763367776077,0.06022653,96131.0,96130.0,0.002]
[1763367776476,0.06022653,96131.0,96130.0,0.001]
[1763367776684,0.06022653,96131.0,96130.0,0.002]
[1763367777093,0.06022653,96131.0,96130.0,0.001]
[1763367781058,0.14358653,96131.0,96130.0,0.001]
[1763367781648,0.11951653,96131.0,96130.0,0.001]
[1763367782229,0.14358653,96131.0,96130.0,0.001]
[1763367782993,0.14358653,96131.0,96125.0,0.1]
[1763367783259,0.01613,96126.0,96125.0,0.1]
[1763367783443,0.03555994,96126.0,96125.0,0.1]
[1763367784012,0.05962994,96126.0,96123.0,0.1]
[1763367784214,0.04349994,96125.0,96118.0,0.1]
[1763367784418,0.02798,96119.0,96116.0,0.1]
[1763367784602,0.04349994,96118.0,96091.0,0.1]
[1763367784805,0.04349994,96118.0,96087.0,0.00587]
[1763367784806,0.02798,96108.0,96089.0,0.1]
[1763367785006,0.04740994,96108.0,96089.0,0.1]
[1763367785229,0.07147994,96108.0,96089.0,0.1]
[1763367785457,0.07147994,96108.0,96089.0,0.3081389]
[1763367785458,0.03127994,96108.0,96089.0,0.3081389]
[1763367785674,0.10278994,96108.0,96091.0,0.00587]
[1763367785890,0.01942994,96108.0,96093.0,0.20813004]
[1763367786029,0.10278994,96108.0,96107.0,0.01087]
[1763367786437,0.01942994,96108.0,96107.0,0.11187]
[1763367786637,0.10278994,96108.0,96107.0,0.11187]
[1763367786869,0.10278994,96108.0,96107.0,0.106]
[1763367787067,0.10278994,96108.0,96107.0,0.105]
[1763367787277,0.10278994,96108.0,96107.0,0.106]
[1763367787444,0.10278994,96108.0,96107.0,0.11187]
[1763367787644,0.01942994,96108.0,96107.0,0.13559316]
[1763367787845,0.10278994,96108.0,96107.0,0.13459316]
[1763367788233,0.10278994,96108.0,96107.0,0.14146316]
[1763367789435,0.01942994,96108.0,96107.0,0.14146316]
[1763367789589,0.10278994,96108.0,96107.0,0.46446316]
[1763367789787,0.08336,96108.0,96107.0,0.46446316]
[1763367790627,0.01185,96134.0,96107.0,0.46446316]
[1763367790810,0.01949813,96133.0,96108.0,0.00587]
[1763367790997,0.01949813,96132.0,96108.0,0.00587]
[1763367791200,0.01949813,96131.0,96108.0,0.00587]
[1763367791400,0.10285813,96130.0,96109.0,0.02272316]
[1763367791627,0.01949813,96129.0,96109.0,0.02272316]
[1763367791970,0.01949813,96128.0,96119.0,0.1]
[1763367792141,0.01949813,96127.0,96119.0,0.1]
[1763367792341,0.01949813,96126.0,96119.0,0.1]